bitfinex/quotes_BTCUSD_20240901
["timestamp","ask_amount","ask_price","bid_price","bid_amount"]
[1725185407787,0.515206,58229.0,58228.0,0.05104286]
[1725185408006,0.171738,58228.0,58227.0,0.05104286]
[1725185408220,0.515215,58228.0,58227.0,0.05104286]
[1725185408656,0.171738,58228.0,58227.0,0.05104286]
[1725185408887,0.515215,58228.0,58227.0,0.05104286]
[1725185409321,0.997992,58228.0,58227.0,0.05104286]
[1725185409562,0.171747,58225.0,58224.0,0.05104286]
[1725185409766,0.343489,58226.0,58223.0,0.05104286]
[1725185409767,0.17175,58224.0,58223.0,0.05104286]
[1725185409980,0.1393,58228.0,58221.0,0.07656429]
[1725185409981,0.515268,58222.0,58221.0,0.07656429]
[1725185410224,0.85878,58222.0,58221.0,0.07656429]
[1725185410429,0.1393,58228.0,58218.0,0.10208572]
[1725185410430,0.171762,58220.0,58218.0,0.10208572]
[1725185410653,0.02695229,58224.0,58219.0,0.02296929]
[1725185410872,0.02695229,58224.0,58223.0,0.515259]
[1725185411114,0.02695229,58224.0,58223.0,0.250453]
[1725185411537,0.343454,58232.0,58223.0,0.422206]
[1725185411746,0.02694942,58227.0,58226.0,0.10230333]
[1725185412415,0.33879042,58227.0,58226.0,0.10230333]
[1725185412672,0.33879042,58227.0,58225.0,0.07675696]
[1725185413097,0.171744,58226.0,58224.0,0.10230333]
[1725185413537,0.343492,58226.0,58222.0,0.12797446]
[1725185413767,0.51525,58224.0,58223.0,0.07678704]
[1725185414006,0.85875,58224.0,58223.0,0.05419313]
[1725185414441,0.85875,58224.0,58223.0,0.05119313]
[1725185414876,0.51525,58224.0,58223.0,0.05119313]
[1725185415113,0.51525,58224.0,58223.0,0.07678704]
[1725185416198,0.171753,58223.0,58222.0,0.005]
[1725185416447,0.171753,58223.0,58222.0,0.08185002]
[1725185416656,0.515259,58223.0,58222.0,0.08185049]
[1725185416867,0.515259,58223.0,58222.0,0.07685049]
[1725185418201,0.515259,58223.0,58222.0,0.07985049]
[1725185418418,0.515259,58223.0,58222.0,0.003]
[1725185418634,0.579159,58223.0,58222.0,0.003]
[1725185418871,0.998865,58223.0,58222.0,0.003]
[1725185419105,1.904684,58223.0,58222.0,0.003]
[1725185419321,1.810294,58223.0,58222.0,0.003]
[1725185420199,0.002,58218.0,58217.0,0.05124906]
[1725185420422,0.002,58218.0,58212.0,0.05124906]
[1725185420423,0.0639,58216.0,58212.0,0.05124906]
[1725185420633,0.0639,58216.0,58210.0,0.05124906]
[1725185420634,0.343571,58212.0,58210.0,0.05124906]
[1725185420852,0.343583,58210.0,58209.0,0.05124906]
[1725185421081,0.579274,58210.0,58209.0,0.05124906]
[1725185421313,0.171794,58209.0,58208.0,0.05124906]
[1725185421547,0.171786,58212.0,58208.0,0.02315217]
[1725185421788,0.343555,58215.0,58210.0,0.05124504]
[1725185422007,0.171784,58213.0,58211.0,0.00343543]
[1725185422218,0.343555,58215.0,58210.0,0.01143549]
[1725185422219,0.02695464,58212.0,58210.0,0.01143549]
[1725185422668,0.19874164,58212.0,58210.0,0.01143549]
[1725185422885,0.171788,58211.0,58210.0,0.008]
[1725185423544,0.02695464,58212.0,58210.0,0.008]
[1725185424012,0.02695464,58212.0,58210.0,0.04222715]
[1725185424232,0.02695464,58212.0,58211.0,0.171788]
[1725185425070,0.02695464,58212.0,58208.0,0.23104004]
[1725185425281,0.02695464,58212.0,58207.0,0.22304504]
[1725185425538,0.30845292,58214.0,58207.0,0.22304504]
[1725185425753,0.30845292,58214.0,58208.0,0.06444325]
[1725185425754,0.17179,58211.0,58208.0,0.06444325]
[1725185425971,0.0762,58213.0,58208.0,0.06444325]
[1725185425972,0.171791,58210.0,58208.0,0.06444325]
[1725185426190,0.171787,58212.0,58208.0,0.06444325]
[1725185426636,0.343549,58216.0,58209.0,0.02362453]
[1725185426853,0.343549,58216.0,58210.0,0.17179]
[1725185427068,0.343549,58216.0,58209.0,0.19541753]
[1725185427286,0.171781,58214.0,58210.0,0.17522638]
[1725185427497,0.171784,58213.0,58208.0,0.23623825]
[1725185427712,0.171789,58211.0,58206.0,0.171803]
[1725185427945,0.171792,58210.0,58204.0,0.3445139]
[1725185428170,0.171792,58210.0,58205.0,0.25451409]
[1725185428384,0.44672683,58212.0,58207.0,0.006]
[1725185428385,0.10315483,58212.0,58207.0,0.006]
[1725185428597,0.235699,58208.0,58207.0,0.006]
[1725185429007,0.235699,58208.0,58204.0,0.0009009]
[1725185429231,0.171806,58205.0,58204.0,0.0009009]
[1725185429448,0.651509,58205.0,58204.0,0.0109009]
[1725185429661,0.649509,58205.0,58204.0,0.0109009]
[1725185429880,1.476835,58205.0,58204.0,0.0109009]
[1725185430094,1.60379241,58205.0,58204.0,0.0009009]
[1725185430350,1.60579241,58205.0,58204.0,0.0009009]
[1725185431442,1.52080433,58205.0,58204.0,0.0009009]
[1725185431663,1.52080433,58205.0,58204.0,0.0129009]
[1725185431851,1.60745633,58205.0,58204.0,0.0129009]
[1725185432098,1.60745633,58205.0,58204.0,0.0009009]
[1725185432099,1.25161433,58205.0,58204.0,0.0009009]
[1725185432746,1.59522733,58205.0,58204.0,0.0009009]
[1725185433428,1.59722733,58205.0,58204.0,0.0009009]
[1725185435227,1.25161433,58205.0,58204.0,0.0009009]
[1725185435436,0.82330333,58205.0,58204.0,0.0009009]
[1725185436345,0.36266341,58205.0,58204.0,0.0009009]
[1725185436556,0.70627641,58205.0,58204.0,0.0009009]
[1725185437432,0.36266341,58205.0,58204.0,0.0009009]
[1725185439491,0.70627641,58205.0,58204.0,0.0009009]
[1725185440403,0.02695741,58205.0,58204.0,0.0009009]
[1725185440677,0.02695741,58205.0,58204.0,0.5971279]
[1725185440905,0.02695741,58205.0,58204.0,1.12046038]
[1725185441565,0.02695741,58205.0,58204.0,0.77684238]
[1725185441828,0.02695741,58205.0,58204.0,0.43322438]
[1725185442528,0.02695741,58205.0,58204.0,0.43422438]
[1725185443019,0.02695741,58205.0,58204.0,0.43322438]
[1725185443547,0.02695741,58205.0,58204.0,0.78784238]
[1725185444022,0.02695741,58205.0,58204.0,0.77684238]
[1725185444270,0.02695741,58205.0,58204.0,0.93023673]
[1725185445160,0.02695741,58205.0,58204.0,0.77684238]
[1725185445391,0.02695741,58205.0,58204.0,0.71034238]
[1725185445647,0.02695741,58205.0,58204.0,0.11411538]
[1725185445867,0.02695741,58205.0,58204.0,0.0009009]
[1725185446303,0.02695741,58205.0,58204.0,0.0109009]
[1725185446756,0.02695741,58205.0,58204.0,0.0009009]
[1725185447227,0.02695741,58205.0,58204.0,0.33769711]
[1725185447446,0.02695741,58205.0,58204.0,0.1837099]
[1725185447667,0.02695741,58205.0,58204.0,0.23442379]
[1725185447891,0.02777641,58205.0,58204.0,0.23442379]
[1725185448111,0.02777641,58205.0,58204.0,0.24442379]
[1725185449268,0.02777641,58205.0,58204.0,0.22666112]
[1725185449526,0.02777641,58205.0,58204.0,0.33675623]
[1725185449749,0.02777641,58205.0,58204.0,0.32675623]
[1725185450203,0.02777641,58205.0,58204.0,0.1837099]
[1725185450913,0.02777641,58205.0,58204.0,0.1727099]
[1725185451138,0.02777641,58205.0,58204.0,0.1827099]
[1725185451352,0.02777641,58205.0,58204.0,0.25972842]
[1725185451783,0.02777641,58205.0,58204.0,0.24972842]
[1725185452869,0.02777641,58205.0,58204.0,0.59334642]
[1725185453541,0.02777641,58205.0,58204.0,0.95096442]
[1725185454199,0.02777641,58205.0,58204.0,1.28058242]
[1725185454409,0.02777641,58205.0,58204.0,1.42358242]
[1725185454621,0.02777641,58205.0,58204.0,1.43758242]
[1725185454873,0.02777641,58205.0,58204.0,1.59162875]
[1725185455308,0.02777641,58205.0,58204.0,1.43758242]
[1725185459690,0.02777641,58205.0,58204.0,1.46558242]
[1725185460600,0.02777641,58205.0,58204.0,1.45158242]
[1725185460826,0.02777641,58205.0,58204.0,1.42358242]
[1725185461075,0.02777641,58205.0,58204.0,1.37578242]
[1725185461490,0.02777641,58205.0,58204.0,1.36178242]
[1725185461708,0.27848241,58205.0,58204.0,0.10384347]
[1725185461925,0.27848241,58205.0,58204.0,0.0149009]
[1725185461926,1.03200841,58205.0,58204.0,0.0149009]
[1725185462143,1.47562141,58205.0,58204.0,0.0149009]
[1725185462459,1.47762141,58205.0,58204.0,0.0149009]
[1725185462658,3.64541141,58205.0,58204.0,0.0149009]
[1725185462876,3.64641141,58205.0,58204.0,0.0149009]
[1725185463498,3.06248841,58205.0,58204.0,0.0149009]
[1725185463762,3.01281741,58205.0,58204.0,0.0149009]
[1725185464177,3.01281741,58205.0,58204.0,0.0009009]
[1725185464612,3.01281741,58205.0,58204.0,0.0129009]
[1725185465274,3.01281741,58205.0,58204.0,0.0009009]
[1725185465275,1.47762141,58205.0,58204.0,0.0009009]
[1725185465481,1.47762141,58205.0,58203.0,0.0077989]
[1725185465482,0.515427,58204.0,58203.0,0.0077989]
[1725185465687,0.271809,58204.0,58203.0,0.0077989]
[1725185465897,0.959045,58204.0,58203.0,0.0077989]
[1725185466104,1.078495,58204.0,58203.0,0.0077989]
[1725185466522,0.734877,58204.0,58203.0,0.0077989]
[1725185466928,0.615427,58204.0,58203.0,0.0077989]
[1725185467761,0.271809,58204.0,58203.0,0.0097989]
[1725185468374,0.556586,58204.0,58203.0,0.0097989]
[1725185468576,0.521336,58204.0,58203.0,0.0097989]
[1725185468779,0.431277,58204.0,58203.0,0.0097989]
[1725185468997,0.858063,58204.0,58203.0,0.0097989]
[1725185469201,0.1,58204.0,58203.0,0.0097989]
[1725185469410,0.171809,58204.0,58203.0,0.0097989]
[1725185469614,0.271809,58204.0,58203.0,0.0097989]
[1725185469824,0.1,58204.0,58203.0,0.0097989]
[1725185470678,0.09407641,58205.0,58203.0,0.0097989]
[1725185470679,0.19407641,58205.0,58203.0,0.0097989]
[1725185471111,0.36588241,58205.0,58203.0,0.0097989]
[1725185471747,0.171809,58204.0,58203.0,0.0077989]
[1725185471962,0.615427,58204.0,58203.0,0.0077989]
[1725185472176,0.615427,58204.0,58203.0,0.0087989]
[1725185473319,5.615427,58204.0,58203.0,0.0077989]
[1725185475059,5.1,58204.0,58203.0,0.0097989]
[1725185475294,5.271809,58204.0,58203.0,0.0097989]
[1725185475720,5.1,58204.0,58203.0,0.0097989]
[1725185476599,5.0,58204.0,58203.0,0.0097989]
[1725185476811,4.95440283,58204.0,58203.0,0.03311215]
[1725185477226,4.95440283,58204.0,58203.0,0.20492415]
[1725185477650,5.12621183,58204.0,58203.0,0.0097989]
[1725185478113,4.95440283,58204.0,58203.0,0.0097989]
[1725185478536,5.46982983,58204.0,58203.0,0.0097989]
[1725185478949,5.81344783,58204.0,58203.0,0.0097989]
[1725185479230,6.61756583,58204.0,58203.0,0.0097989]
[1725185481512,6.39836583,58204.0,58203.0,0.0097989]
[1725185481977,6.93178383,58204.0,58203.0,0.0097989]
[1725185483121,1.977381,58204.0,58203.0,0.0097989]
[1725185484528,1.978199,58204.0,58203.0,0.0097989]
[1725185485251,2.321817,58204.0,58203.0,0.0097989]
[1725185487319,1.978199,58204.0,58203.0,0.0097989]
[1725185491200,1.902299,58204.0,58203.0,0.0097989]
[1725185491865,1.900299,58204.0,58203.0,0.0097989]
[1725185492087,0.272627,58204.0,58203.0,0.0097989]
[1725185492534,0.616245,58204.0,58203.0,0.0097989]
[1725185492971,0.999105,58204.0,58203.0,0.0097989]
[1725185493670,0.987666,58204.0,58203.0,0.0097989]
[1725185494573,1.674902,58204.0,58203.0,0.0097989]
[1725185495020,1.676902,58204.0,58203.0,0.0097989]
[1725185496913,1.931688,58204.0,58203.0,0.0097989]
[1725185498218,1.931688,58204.0,58196.0,0.04313439]
[1725185498219,0.17183,58197.0,58196.0,0.04313439]
[1725185498433,0.171833,58196.0,58195.0,0.04313439]
[1725185498659,0.239635,58196.0,58195.0,0.04313439]
[1725185498876,0.34564,58201.0,58193.0,0.15238664]
[1725185498877,0.395664,58197.0,58193.0,0.0751]
[1725185499092,0.395664,58197.0,58191.0,0.07768664]
[1725185499093,0.515533,58192.0,58191.0,0.07768664]
[1725185499333,0.878956,58192.0,58191.0,0.01948781]
[1725185499563,0.878956,58192.0,58191.0,0.0004]
[1725185500263,1.222645,58192.0,58191.0,0.0004]
[1725185500713,1.038562,58192.0,58191.0,0.0004]
[1725185501359,1.384251,58192.0,58191.0,0.0144]
[1725185502700,1.382251,58192.0,58191.0,0.0144]
[1725185502929,1.384251,58192.0,58191.0,0.0144]
[1725185503834,2.382251,58192.0,58191.0,0.0144]
[1725185504063,2.384251,58192.0,58191.0,0.0144]
[1725185505590,2.382251,58192.0,58191.0,0.0144]
[1725185506240,2.36915,58192.0,58191.0,0.0144]
[1725185506875,1.65564,58192.0,58191.0,0.0144]
[1725185507120,1.0,58192.0,58191.0,0.35810719]
[1725185507365,1.0,58192.0,58191.0,0.62451555]
[1725185507580,1.0,58192.0,58191.0,0.42871933]
[1725185507783,1.0,58192.0,58191.0,0.40924578]
[1725185508021,1.0,58192.0,58191.0,0.71682971]
[1725185508236,1.0,58192.0,58191.0,1.40421971]
[1725185508469,1.515533,58192.0,58191.0,0.03348771]
[1725185508747,1.515533,58192.0,58191.0,0.14343288]
[1725185508748,1.175135,58192.0,58191.0,0.14343288]
[1725185508947,1.346979,58192.0,58191.0,0.0144]
[1725185509168,1.690668,58192.0,58191.0,0.0152998]
[1725185509828,2.62554,58192.0,58191.0,0.0152998]
[1725185510082,2.69074,58192.0,58191.0,0.06691422]
[1725185510297,2.69074,58192.0,58191.0,0.0152998]
[1725185510739,2.69074,58192.0,58191.0,0.06691077]
[1725185510977,2.680062,58192.0,58191.0,0.0152998]
[1725185511182,2.333698,58192.0,58191.0,0.0152998]
[1725185511402,2.119921,58192.0,58191.0,0.06690669]
[1725185511614,2.119921,58192.0,58191.0,0.06690656]
[1725185511827,2.119921,58192.0,58191.0,0.06690683]
[1725185512470,2.121921,58192.0,58191.0,0.06690683]
[1725185512690,2.121921,58192.0,58191.0,0.0152998]
[1725185513331,2.121921,58192.0,58191.0,0.06690683]
[1725185513786,2.46561,58192.0,58191.0,0.0152998]
[1725185514848,2.411312,58192.0,58191.0,0.0152998]
[1725185515050,1.973718,58192.0,58191.0,0.0152998]
[1725185517727,1.97358119,58192.0,58191.0,0.0152998]
[1725185517939,2.18241319,58192.0,58191.0,0.0152998]
[1725185518374,1.85908519,58192.0,58191.0,0.0152998]
[1725185519309,1.96877719,58192.0,58191.0,0.0152998]
[1725185519750,1.96877719,58192.0,58191.0,0.0252998]
[1725185520208,1.85908519,58192.0,58191.0,0.07689117]
[1725185520476,2.06319219,58192.0,58191.0,0.07689117]
[1725185520715,2.06319219,58192.0,58191.0,0.0252998]
[1725185520970,2.06319219,58192.0,58191.0,0.10268685]
[1725185520971,2.05002319,58192.0,58191.0,0.10268685]
[1725185521213,2.05002319,58192.0,58191.0,0.0252998]
[1725185521444,1.99936419,58192.0,58191.0,0.10268685]
[1725185521860,1.85908519,58192.0,58191.0,0.10268685]
[1725185522061,1.85908519,58192.0,58191.0,0.0252998]
[1725185522501,1.85908519,58192.0,58191.0,0.10268685]
[1725185523178,1.51539619,58192.0,58191.0,0.10268685]
[1725185523390,1.51539619,58192.0,58191.0,0.08270037]
[1725185524058,0.99986319,58192.0,58191.0,0.68054237]
[1725185524306,0.99986319,58192.0,58191.0,1.03112401]
[1725185524743,0.99986319,58192.0,58191.0,0.34373401]
[1725185524959,0.99986319,58192.0,58191.0,0.47273698]
[1725185525171,0.99986319,58192.0,58191.0,0.81643198]
[1725185525393,0.99986319,58192.0,58191.0,1.14713781]
[1725185526713,0.99986319,58192.0,58191.0,1.14713776]
[1725185527533,0.99986319,58192.0,58191.0,1.03112399]
[1725185527751,0.99986319,58192.0,58191.0,0.62222899]
[1725185527969,0.99986319,58192.0,58191.0,0.40754014]
[1725185528443,0.99986319,58192.0,58191.0,0.23569314]
[1725185528447,0.99986319,58192.0,58191.0,0.15339314]
[1725185528653,0.99986319,58192.0,58191.0,0.08271095]
[1725185528654,2.09675119,58192.0,58191.0,0.08271095]
[1725185529078,2.42371819,58192.0,58191.0,0.08271095]
[1725185529517,2.34739019,58192.0,58191.0,0.08271095]
[1725185529947,2.27788419,58192.0,58191.0,0.0052998]
[1725185530166,2.27788419,58192.0,58191.0,0.08271095]
[1725185530395,2.23460019,58192.0,58191.0,0.08271095]
[1725185530639,2.23660019,58192.0,58191.0,0.0052998]
[1725185531987,2.23660019,58192.0,58191.0,0.05690668]
[1725185532216,2.23660019,58192.0,58191.0,0.05690713]
[1725185532459,2.23660019,58192.0,58191.0,0.0052998]
[1725185532679,2.23460019,58192.0,58191.0,0.05690628]
[1725185532916,1.98103061,58192.0,58191.0,0.0052998]
[1725185533596,1.98103061,58192.0,58191.0,0.0061996]
[1725185534056,1.98184861,58192.0,58191.0,0.0061996]
[1725185534543,1.98384861,58192.0,58191.0,0.0061996]
[1725185534874,1.98384861,58192.0,58191.0,0.05780608]
[1725185535712,1.87133361,58192.0,58191.0,0.0061996]
[1725185535949,1.70713961,58192.0,58191.0,0.05780608]
[1725185536657,1.56591361,58192.0,58191.0,0.05780608]
[1725185537105,1.56791361,58192.0,58191.0,0.05780608]
[1725185537351,1.56591361,58192.0,58191.0,0.05780608]
[1725185538563,1.22222461,58192.0,58191.0,0.05780919]
[1725185538778,1.22222461,58192.0,58191.0,0.0061996]
[1725185539000,0.70669161,58192.0,58191.0,0.34638334]
[1725185539244,0.70669161,58192.0,58191.0,0.63175207]
[1725185539461,0.70669161,58192.0,58191.0,0.97544707]
[1725185539946,0.70669161,58192.0,58191.0,1.10447211]
[1725185540372,0.70669161,58192.0,58191.0,0.97544707]
[1725185541322,0.70669161,58192.0,58191.0,0.97544519]
[1725185541977,0.70669161,58192.0,58191.0,1.10447632]
[1725185542186,0.70669161,58192.0,58191.0,0.97544519]
[1725185542879,0.70169161,58192.0,58191.0,0.97544519]
[1725185544649,0.70169161,58192.0,58191.0,0.97544509]
[1725185547961,0.70169161,58192.0,58191.0,0.95635896]
[1725185548177,0.70169161,58192.0,58191.0,0.97544495]
[1725185548634,0.70169161,58192.0,58191.0,1.34713995]
[1725185548845,0.70169161,58192.0,58191.0,1.00344495]
[1725185553246,0.70169161,58192.0,58191.0,1.34713995]
[1725185553460,0.70169161,58192.0,58191.0,1.00344495]
[1725185553886,0.70169161,58192.0,58191.0,1.1582163]
[1725185554127,0.70169161,58192.0,58191.0,1.5019113]
[1725185554311,0.70169161,58192.0,58191.0,1.42293995]
[1725185555834,0.70169161,58192.0,58191.0,1.76663495]
[1725185556675,0.70169161,58192.0,58191.0,1.42293995]
[1725185557398,0.70169161,58192.0,58191.0,1.76663495]
[1725185557633,0.70269161,58192.0,58191.0,1.78063495]
[1725185558063,0.02778059,58196.0,58191.0,1.78063495]
[1725185558064,0.02778059,58196.0,58195.0,1.706524]
[1725185558274,0.02778059,58196.0,58195.0,1.74860999]
[1725185558488,0.02778059,58196.0,58195.0,2.984324]
[1725185558722,0.02778059,58196.0,58195.0,3.15796838]
[1725185558945,0.000818,58204.0,58203.0,1.362684]
[1725185559161,0.000818,58204.0,58203.0,1.385684]
[1725185559811,0.000818,58204.0,58203.0,1.40476507]
[1725185561082,0.000818,58204.0,58203.0,1.40376507]
[1725185561466,0.000818,58204.0,58203.0,1.74738907]
[1725185561893,0.001818,58204.0,58203.0,1.76138907]
[1725185562459,0.000818,58204.0,58203.0,1.74738907]
[1725185564355,0.001818,58204.0,58203.0,1.76138907]
[1725185564560,0.001818,58204.0,58203.0,3.01618907]
[1725185565113,0.001818,58204.0,58203.0,3.35981307]
[1725185565568,0.001818,58204.0,58203.0,3.340732]
[1725185565783,0.001818,58204.0,58203.0,3.3598115]
[1725185568197,0.000818,58204.0,58203.0,3.3458115]
[1725185568428,0.000818,58204.0,58203.0,3.3598115]
[1725185568875,0.000818,58204.0,58203.0,3.51397691]
[1725185569111,0.000818,58204.0,58203.0,3.49997691]
[1725185569593,0.000818,58204.0,58203.0,3.51397635]
[1725185570455,0.000818,58204.0,58203.0,3.35981094]
[1725185571104,0.000818,58204.0,58203.0,3.51397635]
[1725185572323,0.000818,58204.0,58203.0,3.35981094]
[1725185572569,0.000818,58204.0,58203.0,3.61397635]
[1725185572811,0.000818,58204.0,58203.0,3.59489741]
[1725185573028,0.42773526,58229.0,58225.0,0.171747]
[1725185573527,0.0782,58229.0,58228.0,0.171738]
[1725185573745,0.0782,58229.0,58228.0,0.22360356]
[1725185573984,0.0782,58229.0,58228.0,0.05186556]
[1725185574208,0.0782,58229.0,58228.0,0.22360356]
[1725185575278,0.0782,58229.0,58228.0,0.56708056]
[1725185575760,0.1432,58230.0,58229.0,0.515206]
[1725185575990,0.1432,58230.0,58229.0,0.60626246]
[1725185576190,0.2089,58230.0,58229.0,0.60626246]
[1725185577254,0.2089,58230.0,58229.0,0.09105646]
[1725185577717,1.2089,58230.0,58229.0,0.09105646]
[1725185577949,1.2089,58230.0,58229.0,0.10405646]
[1725185578187,0.91608461,58230.0,58229.0,0.10405646]
[1725185578407,1.08781661,58230.0,58229.0,0.10405646]
[1725185578627,1.08781661,58230.0,58229.0,0.013]
[1725185580382,1.43128161,58230.0,58229.0,0.013]
[1725185581477,1.49698161,58230.0,58229.0,0.013]
[1725185582793,1.84044661,58230.0,58229.0,0.013]
[1725185583205,1.86939582,58230.0,58229.0,0.013]
[1725185583415,1.87021382,58230.0,58229.0,0.013]
[1725185583636,1.86821382,58230.0,58229.0,0.013]
[1725185585354,2.22482182,58230.0,58229.0,0.013]
[1725185585581,1.86821382,58230.0,58229.0,0.013]
[1725185585809,2.34427182,58230.0,58229.0,0.013]
[1725185586099,2.08266882,58230.0,58229.0,0.013]
[1725185586318,2.50733382,58230.0,58229.0,0.013]
[1725185588565,2.85079882,58230.0,58229.0,0.013]
[1725185588775,2.95079882,58230.0,58229.0,0.013]
[1725185589618,2.67067897,58230.0,58229.0,0.013]
[1725185591173,2.68479264,58230.0,58229.0,0.013]
[1725185591808,2.70278485,58230.0,58229.0,0.013]
[1725185595207,3.43066218,58230.0,58229.0,0.013]
[1725185595871,3.43066218,58230.0,58229.0,0.0008998]
[1725185596538,3.43266218,58230.0,58229.0,0.0008998]
[1725185597653,0.861942,58211.0,58210.0,0.50130766]
[1725185597889,0.861942,58211.0,58203.0,0.84716369]
[1725185597890,0.171809,58204.0,58203.0,0.0008998]
[1725185598333,0.515427,58204.0,58203.0,0.0008998]
[1725185598580,2.001259,58204.0,58203.0,0.0008998]
[1725185598804,1.948059,58204.0,58203.0,0.0008998]
[1725185599710,1.948059,58204.0,58203.0,0.0148998]
[1725185601382,1.948059,58204.0,58203.0,0.0008998]
[1725185601844,2.357861,58204.0,58203.0,0.0008998]
[1725185602065,2.186023,58204.0,58203.0,0.0008998]
[1725185602293,1.668269,58204.0,58203.0,0.0148998]
[1725185604031,1.808769,58204.0,58203.0,0.0148998]
[1725185604768,2.252387,58204.0,58203.0,0.0148998]
[1725185605926,2.266411,58204.0,58203.0,0.0148998]
[1725185606405,2.266411,58204.0,58203.0,0.0008998]
[1725185606406,2.265411,58204.0,58203.0,0.0008998]
[1725185606860,2.265411,58204.0,58203.0,0.0018998]
[1725185608484,2.265411,58204.0,58203.0,0.0008998]
[1725185608691,2.265411,58204.0,58203.0,0.0018998]
[1725185609557,2.43396264,58204.0,58203.0,0.0018998]
[1725185610449,2.265411,58204.0,58203.0,0.0018998]
[1725185612895,0.171865,58186.0,58182.0,0.0424994]
[1725185613373,0.171866,58185.0,58182.0,0.0424994]
[1725185615712,0.171866,58185.0,58182.0,0.0564994]
[1725185616124,0.001,58186.0,58182.0,0.0564994]
[1725185616546,0.171866,58185.0,58182.0,0.0564994]
[1725185616780,0.171866,58185.0,58182.0,0.0424994]
[1725185617244,0.171866,58185.0,58182.0,0.0564994]
[1725185617245,0.172866,58185.0,58182.0,0.0564994]
[1725185618296,0.001,58185.0,58182.0,0.2283724]
[1725185619316,0.001,58185.0,58182.0,0.0564994]
[1725185619725,0.001,58185.0,58184.0,0.515605]
[1725185619934,0.001,58185.0,58184.0,0.317168]
[1725185620560,0.02696551,58187.0,58184.0,0.317168]
[1725185620760,0.02696551,58187.0,58184.0,0.1453]
[1725185620978,0.02696551,58187.0,58184.0,0.317168]
[1725185623037,0.001,58185.0,58184.0,0.331168]
[1725185623642,0.001,58185.0,58184.0,1.02207903]
[1725185624062,0.02696551,58187.0,58184.0,1.02207903]
[1725185624063,0.02696551,58187.0,58186.0,0.515587]
[1725185624287,0.02696551,58187.0,58186.0,0.581187]
[1725185624547,0.02796551,58187.0,58186.0,0.660887]
[1725185624701,0.02796551,58187.0,58186.0,1.004612]
[1725185625327,0.02296551,58187.0,58186.0,1.11170684]
[1725185625751,0.001,58187.0,58186.0,1.11170684]
[1725185626177,0.1,58196.0,58193.0,0.0656]
[1725185626403,0.271834,58196.0,58193.0,0.0656]
[1725185626606,0.271834,58196.0,58193.0,0.1227136]
[1725185627291,0.1,58196.0,58194.0,0.171837]
[1725185627454,0.171825,58199.0,58194.0,0.171837]
[1725185627663,0.001,58196.0,58194.0,0.171837]
[1725185628128,0.001,58196.0,58195.0,0.251536]
[1725185628350,0.001,58196.0,58195.0,0.3184181]
[1725185629049,0.02796185,58196.0,58195.0,0.3184181]
[1725185629504,0.02696185,58196.0,58195.0,0.3184181]
[1725185629710,0.02696185,58196.0,58195.0,0.251536]
[1725185630885,0.02696185,58196.0,58195.0,0.261536]
[1725185633017,0.02696185,58196.0,58195.0,0.605208]
[1725185636443,9.02696185,58196.0,58195.0,0.605208]
[1725185636654,9.12696185,58196.0,58195.0,0.605208]
[1725185636896,9.12696185,58196.0,58195.0,0.261536]
[1725185637595,9.02696185,58196.0,58195.0,0.261536]
[1725185638461,9.02696185,58196.0,58195.0,0.605208]
[1725185639102,9.02696185,58196.0,58195.0,1.06307667]
[1725185639325,9.02696185,58196.0,58195.0,1.11446615]
[1725185639538,9.02696185,58196.0,58195.0,1.06307667]
[1725185640228,9.02696185,58196.0,58195.0,0.71940467]
[1725185640440,9.02696185,58196.0,58195.0,1.14016089]
[1725185640871,9.02696185,58196.0,58195.0,1.14038688]
[1725185641290,9.02696185,58196.0,58195.0,1.06307667]
[1725185641888,9.02696185,58196.0,58195.0,1.61678603]
[1725185642089,9.02696185,58196.0,58195.0,1.48793568]
[1725185645079,9.02696185,58196.0,58195.0,1.37373901]
[1725185646724,9.02777985,58196.0,58195.0,1.03006701]
[1725185647995,9.02777985,58196.0,58195.0,1.03006476]
[1725185648211,9.02777985,58196.0,58195.0,1.04914955]
[1725185648456,9.02777985,58196.0,58195.0,1.06823434]
[1725185649960,9.02962637,58196.0,58195.0,1.06823434]
[1725185650801,9.02962637,58196.0,58195.0,1.03006479]
[1725185654956,9.02962637,58196.0,58195.0,1.01098]
[1725185655204,9.02962637,58196.0,58195.0,1.03006503]
[1725185655580,9.02962637,58196.0,58195.0,1.03006496]
[1725185659681,9.02962637,58196.0,58195.0,0.20092096]
[1725185661403,9.20145937,58196.0,58195.0,0.15796511]
[1725185661604,9.20145937,58196.0,58195.0,0.02908496]
[1725185662015,9.26475937,58196.0,58195.0,0.02908496]
[1725185663079,9.60942537,58196.0,58195.0,0.02908496]
[1725185663283,10.77378937,58196.0,58195.0,0.01]
[1725185663489,11.46312137,58196.0,58195.0,0.06156798]
[1725185663689,11.46312137,58196.0,58195.0,0.01]
[1725185663690,11.56312137,58196.0,58195.0,0.01]
[1725185664694,10.90029537,58196.0,58195.0,0.01]
[1725185664898,10.87807737,58196.0,58195.0,0.01]
[1725185665098,1.203873,58194.0,58193.0,0.0008998]
[1725185665326,1.499053,58194.0,58193.0,0.0008998]
[1725185665697,1.562353,58194.0,58193.0,0.0008998]
[1725185665896,1.564353,58194.0,58193.0,0.0008998]
[1725185666961,1.565353,58194.0,58193.0,0.0008998]
[1725185668692,1.393514,58194.0,58193.0,0.0008998]
[1725185668982,1.565353,58194.0,58193.0,0.0008998]
[1725185670430,1.644953,58194.0,58193.0,0.0008998]
[1725185671023,1.988631,58194.0,58193.0,0.0008998]
[1725185671879,2.00662321,58194.0,58193.0,0.0008998]
[1725185672957,1.81144321,58194.0,58193.0,0.0008998]
[1725185673304,6.86437721,58194.0,58193.0,0.0008998]
[1725185674151,6.79359721,58194.0,58193.0,0.0008998]
[1725185674716,5.24621121,58194.0,58193.0,0.0008998]
[1725185677055,4.90253321,58194.0,58193.0,0.0008998]
[1725185677255,4.62542321,58194.0,58193.0,0.0008998]
[1725185678012,3.93606721,58194.0,58193.0,0.0008998]
[1725185678230,0.60458921,58194.0,58193.0,0.0008998]
[1725185679087,0.54128921,58194.0,58193.0,0.0008998]
[1725185679580,0.88496721,58194.0,58193.0,0.0008998]
[1725185679756,0.54128921,58194.0,58193.0,0.0008998]
[1725185679965,0.46089621,58194.0,58193.0,0.0008998]
[1725185680180,0.29183121,58194.0,58193.0,0.0008998]
[1725185680806,0.11999221,58194.0,58193.0,0.0008998]
[1725185681014,0.19183121,58194.0,58193.0,0.0008998]
[1725185681219,0.11899221,58194.0,58193.0,0.0008998]